bitfinex/quotes_SOLUSD_20250301
["timestamp","ask_amount","ask_price","bid_price","bid_amount"]
[1740815076480,80.7001,143.11,143.05,11.9153]
[1740815079907,80.7001,143.11,143.05,27.8964]
[1740815080299,80.7001,143.11,143.05,29.8964]
[1740815080677,80.7001,143.11,143.05,11.9153]
[1740815084215,80.7001,143.11,143.05,27.8964]
[1740815084616,80.7001,143.11,143.05,29.8964]
[1740815085112,0.0001,143.11,143.05,110.8964]
[1740815086819,0.0001,143.11,143.06,2.0]
[1740815087893,0.0001,143.11,143.07,5.5916]
[1740815093403,0.0001,143.11,143.07,21.5707]
[1740815094908,0.0001,143.11,143.07,5.5916]
[1740815100418,80.7,143.1,143.05,6.323]
[1740815101639,80.7,143.1,143.05,11.9151]
[1740815102414,80.7,143.1,143.05,5.6551]
[1740815103041,1.5553,143.11,143.05,5.6551]
[1740815107445,1.5553,143.11,143.05,7.6551]
[1740815107747,1.5553,143.11,143.05,23.6362]
[1740815108324,0.0001,143.11,143.06,20.64964886]
[1740815108744,0.0001,143.11,143.07,5.5916]
[1740815108949,0.0001,143.11,143.08,20.64964886]
[1740815109137,0.0001,143.11,143.09,2.0]
[1740815109447,0.0001,143.11,143.09,4.0]
[1740815110138,0.0001,143.11,143.1,20.64964886]
[1740815110447,0.0001,143.11,143.1,22.64964886]
[1740815110960,0.0001,143.11,143.1,26.24004886]
[1740815112327,0.0001,143.11,143.1,29.89144886]
[1740815113343,0.0001,143.11,143.1,110.89144886]
[1740815114130,0.0001,143.11,143.1,107.24004886]
[1740815114332,0.0001,143.11,143.1,105.24004886]
[1740815114537,0.0001,143.11,143.1,86.5904]
[1740815114827,0.0001,143.11,143.09,86.5905]
[1740815116364,0.0001,143.11,143.07,87.16]
[1740815117877,0.0001,143.11,143.07,92.7515]
[1740815118176,0.0001,143.11,143.05,0.063]
[1740815118341,0.0001,143.11,143.05,24.30504886]
[1740815118548,0.0001,143.11,143.1,18.64964886]
[1740815118844,0.0001,143.11,143.1,105.86964886]
[1740815120053,0.0001,143.11,143.1,92.8104]
[1740815124948,0.0001,143.11,143.1,87.22]
[1740815125875,0.0001,143.12,143.11,2.0]
[1740815126167,0.0001,143.12,143.11,109.23974886]
[1740815127572,0.0001,143.12,143.11,110.70628477]
[1740815130061,0.0001,143.12,143.11,124.20588825]
[1740815130539,0.0001,143.12,143.11,262.20588825]
[1740815130741,0.0001,143.12,143.11,260.73935234]
[1740815131955,0.0001,143.12,143.11,10.90250348]
[1740815132161,0.0001,143.12,143.09,5.5908]
[1740815132863,0.0001,143.12,143.08,92.8311]
[1740815134344,0.0001,143.12,143.09,18.64964886]
[1740815134547,0.0001,143.12,143.09,20.64964886]
[1740815134747,0.0001,143.12,143.09,18.64964886]
[1740815134960,0.0001,143.12,143.09,20.64964886]
[1740815135451,0.0001,143.12,143.1,2.0]
[1740815136065,0.0001,143.12,143.11,5.5901]
[1740815137672,0.0001,143.12,143.11,24.23974886]
[1740815142275,0.0001,143.12,143.11,105.23974886]
[1740815142769,0.0001,143.12,143.11,110.70654664]
[1740815143275,0.0001,143.12,143.11,167.70654664]
[1740815143462,0.0001,143.12,143.11,166.23974886]
[1740815143968,0.0001,143.12,143.11,247.23974886]
[1740815145668,0.0001,143.17,143.16,2.0]
[1740815145855,0.0001,143.17,143.16,111.3159053]
[1740815147775,0.0001,143.17,143.16,116.9040053]
[1740815148383,0.0001,143.17,143.16,5.5881]
[1740815148575,0.0001,143.17,143.16,7.5881]
[1740815149382,0.0001,143.17,143.16,26.23774886]
[1740815149887,0.0001,143.17,143.16,28.23774886]
[1740815151279,0.0001,143.17,143.16,109.23774886]
[1740815152086,0.0001,143.17,143.16,107.23774886]
[1740815152467,0.0001,143.17,143.16,109.23774886]
[1740815153686,0.0001,143.17,143.16,5.5881]
[1740815155077,0.0001,143.17,143.16,7.5881]
[1740815155277,0.0001,143.17,143.16,9.5881]
[1740815155886,0.0001,143.17,143.16,108.70394481]
[1740815156070,0.0001,143.17,143.16,107.23774886]
[1740815156266,0.0001,143.17,143.16,105.23774886]
[1740815157192,0.0001,143.17,143.16,107.23774886]
[1740815158593,0.0001,143.17,143.16,105.23774886]
[1740815159461,0.0001,143.17,143.16,86.5881]
[1740815159866,0.0001,143.17,143.16,20.0]
[1740815160066,1.5998,143.17,143.16,0.063]
[1740815167896,0.0001,143.17,143.16,0.063]
[1740815174608,0.0001,143.17,143.16,18.71264886]
[1740815175378,0.0001,143.17,143.16,99.71264886]
[1740815175800,0.0001,143.17,143.16,86.6511]
[1740815176394,0.0001,143.17,143.16,105.30074886]
[1740815177804,0.0001,143.17,143.16,81.063]
[1740815180006,0.0001,143.17,143.16,86.6511]
[1740815180913,0.0001,143.17,143.16,5.6511]
[1740815182216,0.0001,143.17,143.16,0.063]
[1740815186016,26.2361,143.17,143.16,0.063]
[1740815186624,31.8238,143.17,143.16,0.063]
[1740815187118,80.7,143.16,143.11,0.063]
[1740815187326,86.9,143.16,143.11,0.063]
[1740815187703,20.25834886,143.15,143.11,0.063]
[1740815187907,80.7,143.14,143.11,0.063]
[1740815188103,80.7,143.13,143.11,0.063]
[1740815189422,80.7,143.12,143.11,0.063]
[1740815193034,86.2897,143.12,143.11,0.063]
[1740815193230,5.5897,143.12,143.11,0.063]
[1740815194639,20.0,143.12,143.11,0.063]
[1740815196539,25.5897,143.12,143.11,0.063]
[1740815196930,20.0,143.12,143.11,0.063]
[1740815201115,44.23934886,143.12,143.11,0.063]
[1740815201435,24.23934886,143.12,143.11,0.063]
[1740815202038,2.0,143.11,143.09,0.063]
[1740815202221,28.2,143.1,143.09,0.063]
[1740815202833,133.14004886,143.1,143.09,0.063]
[1740815204623,131.14004886,143.1,143.09,0.063]
[1740815204927,133.14004886,143.1,143.06,0.063]
[1740815205125,24.24084886,143.08,143.06,0.063]
[1740815206846,99.34964886,143.07,143.06,0.063]
[1740815207146,18.64964886,143.07,143.06,0.063]
[1740815208140,24.24124886,143.07,143.06,0.063]
[1740815208340,25.79694886,143.07,143.06,0.063]
[1740815209720,27.79694886,143.07,143.06,0.0001]
[1740815209920,26.89674886,143.06,143.05,0.0001]
[1740815210649,28.89674886,143.06,143.05,0.0001]
[1740815212935,34.48874886,143.06,143.05,0.0001]
[1740815213245,34.48874886,143.06,143.01,0.063]
[1740815213246,2.0,143.02,143.01,0.0001]
[1740815213543,30.50414886,143.02,143.01,0.0001]
[1740815214140,30.50414886,143.02,142.97,0.063]
[1740815214437,38.64964886,142.98,142.97,0.063]
[1740815215156,44.24474886,142.98,142.97,0.063]
[1740815217274,46.24474886,142.98,142.97,0.063]
[1740815218152,46.24474886,142.98,142.97,0.0001]
[1740815219046,25.5951,142.98,142.97,0.0001]
[1740815222069,20.0,142.98,142.97,0.0001]
[1740815222361,25.5951,142.98,142.97,0.0001]
[1740815223963,44.24474886,142.98,142.97,0.0001]
[1740815224158,46.24474886,142.98,142.97,0.0001]
[1740815224345,48.24474886,142.98,142.97,0.0001]
[1740815224751,20.64964886,142.97,142.92,0.063]
[1740815225070,38.64964886,142.95,142.92,0.063]
[1740815225237,44.86964886,142.95,142.92,0.063]
[1740815226140,50.46594886,142.95,142.92,0.063]
[1740815228664,20.64964886,142.94,142.92,0.063]
[1740815228863,22.64964886,142.93,142.92,0.063]
[1740815229063,20.64964886,142.93,142.92,0.063]
[1740815229239,22.64964886,142.93,142.92,0.063]
[1740815229841,18.64964886,142.93,142.92,0.063]
[1740815230670,26.24674886,142.93,142.92,0.063]
[1740815230969,28.24674886,142.93,142.92,0.063]
[1740815231676,26.24674886,142.93,142.92,0.063]
[1740815231857,24.24674886,142.93,142.92,0.063]
[1740815235259,5.5971,142.93,142.92,0.063]
[1740815235458,5.5955,142.97,142.92,0.063]
[1740815238258,11.8452,142.98,142.92,0.063]
[1740815238569,80.7,142.96,142.92,0.063]
[1740815243976,80.7,142.95,142.92,0.063]
[1740815244178,5.5967,142.94,142.92,0.063]
[1740815244352,86.2967,142.94,142.92,0.063]
[1740815247378,80.7,142.93,142.92,0.063]
[1740815247585,7.5967,142.94,142.92,0.063]
[1740815247878,6.2,142.93,142.92,0.063]
[1740815248356,24.84964886,142.93,142.92,0.063]
[1740815249786,30.44674886,142.93,142.92,0.063]
[1740815252983,6.2,142.96,142.92,0.063]
[1740815254286,11.7959,142.96,142.92,0.063]
[1740815254686,25.7858,142.96,142.92,0.063]
[1740815254884,18.64964886,142.95,142.92,0.063]
[1740815255690,11.7959,142.96,142.92,0.063]
[1740815256185,6.2,142.96,142.92,0.063]
[1740815256379,80.7,142.95,142.92,0.063]
[1740815257686,0.03,142.96,142.92,0.063]
[1740815258394,0.03,142.96,142.92,5.6605]
[1740815275410,0.03,142.96,142.92,19.6543]
[1740815275710,0.03,142.96,142.92,25.8143]
[1740815276111,0.03,142.96,142.93,18.64964886]
[1740815276909,0.03,142.96,142.94,7.9808]
[1740815277216,0.03,142.96,142.95,18.64964886]
[1740815277709,0.03,142.96,142.95,5.5963]
[1740815278301,0.03,142.96,142.92,6.223]
[1740815279597,0.03,142.96,142.92,11.8203]
[1740815281897,0.03,142.96,142.93,18.64964886]
[1740815283831,0.03,142.96,142.95,18.64964886]
[1740815285712,0.03,142.96,142.95,24.24594886]
[1740815285912,0.03,142.96,142.95,32.42304886]
[1740815286602,0.03,142.98,142.95,48.41394886]
[1740815287921,0.03,142.98,142.95,129.41394886]
[1740815288415,0.03,142.98,142.95,130.88220875]
[1740815289023,80.7,143.06,142.97,40.64964886]
[1740815289330,86.2913,143.08,143.01,18.64964886]
[1740815289509,86.2913,143.08,143.01,99.64964886]
[1740815289715,80.7,143.08,143.01,99.64964886]
[1740815290517,80.7,143.08,143.02,5.5936]
[1740815291024,86.2915,143.08,143.01,86.5939]
[1740815292227,86.2915,143.08,143.01,81.0]
[1740815292433,80.7,143.07,142.98,87.16]
[1740815292610,1.5609,143.05,142.97,1.5287]
[1740815292808,80.7,143.04,142.96,6.0021]
[1740815293014,80.7,143.03,142.96,6.0021]
[1740815294425,80.7,143.03,142.94,105.24634886]
[1740815294627,86.2936,143.02,142.94,81.0]
[1740815295341,100.2776,143.02,142.94,81.0]
[1740815295517,100.2776,143.02,142.94,86.5966]
[1740815295911,86.2936,143.02,142.94,86.5966]
[1740815296322,86.2936,143.02,142.95,18.64964886]
[1740815296634,86.2936,143.02,142.96,5.5959]
[1740815297521,86.2936,143.02,142.95,18.64964886]
[1740815297716,86.2936,143.02,142.94,86.5966]
[1740815298014,80.7,143.01,142.93,7.7964]
[1740815298320,80.7,143.0,142.92,0.063]
[1740815298720,5.5947,142.99,142.92,5.6605]
[1740815298913,5.5947,142.99,142.92,0.063]
[1740815299436,80.7,142.98,142.92,0.063]
[1740815299913,80.7,142.97,142.92,0.063]
[1740815300114,80.7,142.96,142.92,0.063]
[1740815300717,86.296,142.96,142.92,0.063]
[1740815302242,80.7,142.96,142.92,0.063]
[1740815303014,80.7,142.95,142.92,0.063]
[1740815303635,80.7,142.98,142.92,0.063]
[1740815303821,7.7164,143.0,142.92,20.35394886]
[1740815303822,80.7,143.0,142.92,20.35394886]
[1740815304022,80.7,143.0,142.94,18.64964886]
[1740815304635,80.7,143.0,142.94,24.80964886]
[1740815306543,80.7,143.0,142.95,5.5963]
[1740815306722,80.73,143.02,142.95,5.5963]
[1740815307122,86.3237,143.02,142.94,6.16]
[1740815307637,20.0,142.98,142.92,0.063]
[1740815307845,100.7,142.97,142.92,0.063]
[1740815308049,80.7,142.96,142.92,0.063]
[1740815309035,20.0,142.97,142.92,0.063]
[1740815309243,25.5955,142.97,142.92,0.063]
[1740815313455,80.7,142.96,142.92,0.063]
[1740815313928,80.7,142.95,142.92,0.063]
[1740815314125,20.0,142.93,142.92,0.063]
[1740815314535,25.5971,142.93,142.92,0.063]
[1740815315438,20.0,142.93,142.92,0.063]
[1740815317660,80.7,142.93,142.92,0.063]
[1740815318731,21.5858,142.96,142.92,0.063]
[1740815318960,18.64964886,142.95,142.92,0.063]
[1740815319259,6.16,142.94,142.9,0.063]
[1740815320258,5.5971,142.93,142.9,0.063]
[1740815323536,80.7,142.92,142.9,0.063]
[1740815323735,80.7,142.91,142.9,0.063]
[1740815325137,5.5977,142.92,142.9,0.063]
[1740815325339,7.1077,142.92,142.9,0.063]
[1740815326455,12.65267296,142.92,142.9,0.063]
[1740815326634,24.24754886,142.91,142.9,0.063]
[1740815328454,5.5976,142.92,142.9,0.063]
[1740815328836,20.0,142.91,142.9,0.063]
[1740815332653,80.7,142.92,142.9,0.063]
[1740815333338,86.2964,142.95,142.9,0.063]
[1740815333560,80.7,142.94,142.9,0.063]
[1740815339048,80.73,142.94,142.9,0.063]
[1740815340557,86.3267,142.94,142.9,0.063]
[1740815341186,20.0,142.91,142.9,0.063]
[1740815342584,25.5979,142.91,142.9,0.063]
[1740815343086,20.0,142.91,142.9,0.063]
[1740815343384,25.5979,142.91,142.9,0.063]
[1740815343766,20.0,142.91,142.9,0.063]
[1740815343971,80.7,142.92,142.9,0.063]
[1740815344776,34.08149826,143.04,142.91,8.0134]
[1740815344987,64.56398736,143.15,143.14,24.0]
[1740815345280,4.52225175,143.16,143.15,39.04670723]
[1740815345479,22.13816748,143.27,143.18,53.44516023]
[1740815345685,2.0,143.33,143.22,34.88726126]
[1740815345886,20.0,143.32,143.24,34.31725803]
[1740815346181,2.0,143.34,143.25,34.97690708]
[1740815346385,20.0,143.33,143.25,49.40325153]
[1740815346583,2.0,143.34,143.25,49.40325153]
[1740815346887,20.0,143.33,143.25,54.98765153]
[1740815347181,20.03,143.31,143.25,49.40325153]
[1740815347388,0.03,143.31,143.25,14.56302506]
[1740815347781,20.03,143.31,143.25,14.56302506]
[1740815348081,12.54210854,143.36,143.27,2.0]
[1740815348274,18.64964886,143.35,143.28,0.5782614]
[1740815348583,7.26,143.36,143.28,0.5782614]
[1740815349588,12.8406,143.36,143.28,0.5782614]
[1740815349769,7.24,143.36,143.29,32.98434597]
[1740815350180,20.0,143.33,143.29,32.98434597]
[1740815350372,131.20953614,143.37,143.29,32.98434597]
[1740815350577,18.64964886,143.36,143.29,32.98434597]
[1740815351081,38.18104886,143.36,143.3,14.42634445]
[1740815351484,38.18104886,143.36,143.3,1e-08]
[1740815351665,38.18104886,143.36,143.2,2.0]
[1740815351869,38.18104886,143.36,143.23,2.0]
[1740815352486,18.64964886,143.31,143.23,2.0]
[1740815352668,18.64964886,143.31,143.25,10.76062964]
[1740815353074,20.0,143.27,143.25,10.76062964]
[1740815354990,20.0,143.28,143.23,2.0]
[1740815356391,20.0,143.28,143.22,4.0]
[1740815356595,20.0,143.28,143.22,2.0]
[1740815356770,20.0,143.28,143.22,4.0]
[1740815357200,20.0,143.28,143.21,2.0]
[1740815357201,5.5838,143.27,143.21,2.0]
[1740815357791,5.5838,143.27,143.22,2.0]
[1740815358104,5.5838,143.27,143.22,4.0]
[1740815358285,20.0,143.26,143.24,2.0]
[1740815358780,20.0,143.27,143.25,2.0]
[1740815360291,20.0,143.27,143.24,4.0]
[1740815360482,5.5831,143.29,143.24,2.0]
[1740815360896,20.0,143.26,143.24,2.0]
[1740815361095,80.7,143.28,143.24,2.0]
[1740815361397,20.0,143.25,143.23,2.0]
[1740815363276,20.0,143.25,143.23,4.0]
[1740815363896,80.7,143.28,143.23,4.0]
[1740815364491,80.7,143.28,143.23,2.0]
[1740815364796,80.7,143.28,143.23,4.0]
[1740815364979,86.2838,143.27,143.22,0.063]
[1740815365179,80.7,143.26,143.22,0.063]
[1740815365375,80.7,143.25,143.22,0.063]
[1740815365581,5.585,143.24,143.22,0.063]
[1740815368394,80.7,143.23,143.22,0.063]
[1740815368594,5.585,143.24,143.22,0.0001]
[1740815369679,47.4627,143.27,143.22,0.0001]
[1740815369880,20.0,143.23,143.22,0.0001]
[1740815373281,25.5854,143.23,143.22,0.0001]
[1740815375102,25.6154,143.23,143.22,0.0001]
[1740815376705,117.68,143.26,143.22,0.0001]
[1740815376907,80.7,143.25,143.22,0.0001]
[1740815377606,100.2462,143.25,143.22,0.0001]
[1740815378714,25.5854,143.23,143.15,4.0]
[1740815378919,20.0,143.19,143.15,4.0]
[1740815379099,20.0,143.19,143.16,2.0]
[1740815380210,80.7,143.22,143.17,2.0]
[1740815380400,100.2523,143.21,143.17,4.0]
[1740815382010,100.2523,143.21,143.17,2.0]
[1740815383614,100.2523,143.21,143.17,4.0]
[1740815384091,100.2523,143.21,143.17,2.0]
[1740815385113,100.2523,143.21,143.17,4.0]
[1740815388924,20.0,143.18,143.16,0.063]
[1740815389096,20.0,143.17,143.16,0.063]
[1740815389624,80.7,143.2,143.17,2.0]
[1740815389926,20.0,143.18,143.17,2.0]
[1740815390719,5.5862,143.21,143.19,2.0]
[1740815391212,13.9648,143.22,143.2,2.0]
[1740815391415,0.03,143.23,143.2,2.0]
[1740815391713,20.0,143.22,143.21,2.0]
[1740815392314,20.0,143.22,143.21,6.17541468]
[1740815392815,25.5858,143.22,143.21,6.17541468]
[1740815394416,25.5858,143.22,143.21,4.17541468]
[1740815395099,25.5858,143.22,143.21,6.17541468]
[1740815398417,25.6158,143.22,143.21,6.17541468]
[1740815398820,25.6158,143.22,143.21,4.17541468]
[1740815400319,25.6158,143.22,143.2,2.0]
[1740815400727,39.5803,143.22,143.17,85.0]
[1740815401126,39.5803,143.22,143.16,4.063]
[1740815401127,120.2803,143.22,143.16,4.063]
[1740815401323,20.0,143.18,143.16,0.063]
[1740815401502,80.7,143.2,143.16,0.063]
[1740815401704,80.7,143.2,143.18,4.18412179]
[1740815402635,5.5869,143.19,143.18,4.18412179]
[1740815403105,5.5869,143.19,143.17,4.0]
[1740815403426,5.5869,143.19,143.16,4.063]
[1740815403806,19.5543,143.19,143.16,4.063]
[1740815404021,19.5543,143.19,143.17,4.0]
[1740815404507,5.5869,143.19,143.17,4.0]
[1740815404817,5.5869,143.19,143.18,2.0]
[1740815405930,5.5869,143.19,143.18,4.0]
[1740815407028,19.5812,143.22,143.18,4.0]
[1740815407212,19.5812,143.22,143.19,2.0]
[1740815407404,19.5812,143.22,143.19,4.0]
[1740815409030,0.03,143.22,143.2,4.0]
[1740815409528,5.1454,143.23,143.2,4.0]
[1740815409948,5.1454,143.23,143.21,2.0]
[1740815411635,20.0,143.22,143.21,2.0]
[1740815412414,20.0,143.22,143.21,6.19218742]
[1740815413727,5.5858,143.22,143.21,8.19218742]
[1740815414638,13.9625,143.24,143.21,8.19218742]
[1740815414831,19.5475,143.24,143.21,8.19218742]
[1740815415739,19.5475,143.24,143.21,4.0]
[1740815417053,19.5475,143.24,143.21,2.0]
[1740815417232,19.5475,143.24,143.21,4.0]
[1740815419851,19.5475,143.24,143.21,2.0]
[1740815420033,19.5475,143.24,143.21,4.0]
[1740815421948,19.5475,143.24,143.21,2.0]
[1740815422751,19.5775,143.24,143.21,4.0]
[1740815422934,19.5775,143.24,143.21,2.0]
[1740815423258,19.5775,143.24,143.19,2.0]
[1740815423446,19.5775,143.24,143.18,8.8]
[1740815423753,80.7,143.23,143.18,8.8]
[1740815423955,20.0,143.2,143.16,2.063]
[1740815424160,20.0,143.19,143.16,4.063]
[1740815425331,5.5873,143.18,143.17,2.0]
[1740815425758,5.5873,143.18,143.16,4.063]
[1740815426159,5.5873,143.18,143.17,8.19148307]
[1740815427257,13.9655,143.21,143.17,8.19148307]
[1740815427471,19.5517,143.21,143.17,8.19148307]
[1740815428133,19.5517,143.21,143.18,2.0]
[1740815430863,5.5862,143.21,143.2,2.0]
[1740815431681,5.5862,143.21,143.2,6.19027488]
[1740815432595,13.9935,143.24,143.2,6.19027488]
[1740815432904,19.5785,143.24,143.2,6.19027488]
[1740815433671,5.615,143.24,143.21,6.19027488]
[1740815433875,5.615,143.24,143.23,4.0]
[1740815434782,0.03,143.24,143.23,4.0]
[1740815434996,0.03,143.24,143.23,8.19027488]
[1740815439504,0.03,143.24,143.23,26.83992374]
[1740815440097,0.03,143.24,143.23,245.83992374]
[1740815441477,0.03,143.3,143.29,4.0]
[1740815445600,20.03,143.3,143.28,6.19027488]
[1740815445803,20.03,143.3,143.28,4.19027488]
[1740815446802,20.03,143.3,143.27,4.0]
[1740815447003,5.583,143.29,143.27,2.0]
[1740815447298,5.583,143.29,143.27,4.0]
[1740815447502,5.583,143.29,143.27,2.0]
[1740815448013,5.583,143.29,143.27,4.0]
[1740815448319,5.583,143.29,143.28,2.0]
[1740815450316,5.583,143.29,143.27,2.0]
[1740815450615,5.583,143.29,143.27,4.0]
[1740815450828,5.583,143.29,143.28,4.0]
[1740815450995,0.03,143.3,143.29,4.0]
[1740815451195,0.03,143.3,143.29,22.64964886]
[1740815451721,0.03,143.3,143.29,103.64964886]
[1740815452696,0.03,143.3,143.29,85.0]
[1740815454121,0.03,143.3,143.29,4.0]
[1740815455808,0.03,143.3,143.29,22.64964886]
[1740815456227,0.03,143.3,143.29,103.64964886]
[1740815457008,4.68308852,143.37,143.36,2.0]
[1740815457208,4.68308852,143.37,143.36,10.62]
[1740815457209,0.03,143.37,143.36,10.62]
[1740815457409,5.6099,143.37,143.36,8.62]
[1740815457720,5.6099,143.37,143.36,10.62]
[1740815458414,0.03,143.37,143.36,10.62]
[1740815459123,0.03,143.37,143.36,8.62]
[1740815459333,0.03,143.37,143.34,4.0]
[1740815459334,20.03,143.37,143.34,4.0]
[1740815459507,20.03,143.37,143.35,4.0]
[1740815459709,20.03,143.37,143.35,2.0]
[1740815459933,20.03,143.37,143.33,2.0]
[1740815460233,20.0,143.36,143.35,2.0]
[1740815460410,20.0,143.36,143.34,2.0]
[1740815460614,5.5807,143.35,143.34,2.0]
[1740815461012,5.5807,143.35,143.32,2.0]
[1740815461214,19.5325,143.35,143.3,10.64]
[1740815461524,19.5325,143.35,143.3,8.64]
[1740815461703,19.5325,143.35,143.29,4.0]
[1740815461907,20.0,143.32,143.29,2.0]
[1740815462211,20.0,143.32,143.29,4.0]
[1740815462421,20.0,143.34,143.29,2.0]
[1740815462622,20.0,143.33,143.29,4.0]
[1740815464031,20.0,143.33,143.29,2.0]
[1740815464032,19.5366,143.32,143.29,2.0]
[1740815464211,19.5366,143.32,143.28,4.0]
[1740815464720,19.5366,143.32,143.28,2.0]
[1740815465040,19.5366,143.32,143.27,2.0]
[1740815465231,19.5366,143.32,143.28,2.0]
[1740815465618,20.0,143.33,143.28,2.0]
[1740815466135,20.0,143.33,143.28,4.0]
[1740815466437,20.0,143.33,143.28,2.0]
[1740815466745,19.5366,143.32,143.28,2.0]
[1740815468643,5.5819,143.32,143.31,2.0]
[1740815468936,25.5819,143.32,143.3,2.0]
[1740815470034,20.0,143.3,143.28,4.0]
[1740815470235,20.0,143.3,143.29,2.0]
[1740815471147,39.5393,143.3,143.27,2.0]
[1740815471941,39.5393,143.3,143.28,2.0]
[1740815472635,25.5826,143.3,143.29,4.0]
[1740815472817,25.5826,143.3,143.29,2.0]
[1740815473443,25.5826,143.3,143.28,4.0]
[1740815473627,25.5826,143.3,143.28,2.0]
[1740815473943,25.5826,143.3,143.28,4.0]
[1740815474349,39.5393,143.3,143.27,2.0]
[1740815477337,39.5393,143.3,143.28,2.0]
[1740815478145,25.5826,143.3,143.28,2.0]
[1740815478336,5.5826,143.3,143.29,2.0]
[1740815478537,5.5826,143.3,143.29,4.0]
[1740815480648,5.5826,143.3,143.29,2.0]
[1740815481751,5.5826,143.3,143.29,4.0]
[1740815482649,5.5826,143.3,143.29,2.0]
[1740815482948,5.5826,143.3,143.29,4.0]
[1740815483333,5.5826,143.3,143.29,2.0]
[1740815483534,5.5826,143.3,143.29,4.0]
[1740815483734,5.5826,143.3,143.29,2.0]
[1740815484354,5.5826,143.3,143.29,4.0]
[1740815486164,5.5826,143.3,143.29,8.18344415]
[1740815487159,5.5826,143.3,143.29,6.18344415]
[1740815487323,5.5826,143.3,143.29,2.0]
[1740815487525,5.5826,143.3,143.29,4.0]
[1740815490661,5.5826,143.3,143.29,8.18370921]
[1740815491366,5.5826,143.3,143.29,6.18370921]
[1740815491564,5.5826,143.3,143.29,8.18370921]
[1740815493061,0.03,143.32,143.3,2.0]
[1740815493258,0.03,143.32,143.31,2.0]
[1740815493574,0.03,143.32,143.3,4.0]
[1740815493871,0.03,143.32,143.31,2.0]
[1740815494164,0.03,143.32,143.3,4.0]
[1740815494775,0.03,143.32,143.31,2.0]
[1740815495081,0.03,143.32,143.3,4.0]
[1740815495276,0.03,143.32,143.31,2.0]
[1740815495479,0.03,143.32,143.3,4.0]
[1740815495779,0.03,143.32,143.29,4.0]
[1740815495960,0.03,143.32,143.29,2.0]
[1740815496154,80.73,143.32,143.28,2.0]
[1740815496345,80.73,143.32,143.28,4.0]
[1740815496965,80.73,143.32,143.28,2.0]
[1740815497274,80.73,143.32,143.27,4.063]
[1740815497475,80.73,143.32,143.27,2.063]
[1740815498382,19.538,143.31,143.28,4.18527872]
[1740815499472,19.538,143.31,143.28,7.872e-05]
[1740815499689,80.7,143.3,143.27,0.063]
[1740815500375,86.283,143.29,143.27,0.063]
[1740815500557,80.7,143.28,143.27,0.063]
[1740815501777,86.2834,143.28,143.27,0.063]
[1740815504864,100.242,143.28,143.24,4.063]
[1740815505163,80.7,143.27,143.24,0.063]
[1740815505491,80.7,143.27,143.24,2.063]